bitfinex/quotes_SOLUSD_20250722
["timestamp","ask_amount","ask_price","bid_price","bid_amount"]
[1753200895146,0.06,203.72,203.68,9.73878245]
[1753200895352,0.06,203.72,203.69,9.73878245]
[1753200895547,0.06,203.72,203.68,9.73878245]
[1753200896289,0.06,203.72,203.69,9.73878245]
[1753200896992,0.06,203.72,203.68,9.73878245]
[1753200897151,0.06,203.72,203.66,51.61887538]
[1753200897356,9.79878245,203.72,203.66,51.61887538]
[1753200897556,0.06,203.72,203.66,51.61887538]
[1753200897777,0.06,203.72,203.67,9.73878245]
[1753200897982,0.06,203.72,203.66,46.70878245]
[1753200898196,9.79878245,203.72,203.66,46.01878245]
[1753200898369,0.06,203.72,203.68,9.73878245]
[1753200898684,0.06,203.72,203.69,9.73878245]
[1753200898979,0.06,203.72,203.68,9.73878245]
[1753200899397,0.06,203.72,203.67,4.90977692]
[1753200899398,0.06,203.72,203.67,14.64855937]
[1753200899590,0.06,203.72,203.67,4.90977692]
[1753200899752,0.06,203.72,203.67,5.59977692]
[1753200900256,9.73878245,203.68,203.62,0.69]
[1753200900459,9.73878245,203.68,203.62,46.74878245]
[1753200900660,10.40878245,203.69,203.62,46.74878245]
[1753200900859,4.96869821,203.72,203.62,46.74878245]
[1753200901085,0.06,203.72,203.65,9.73878245]
[1753200901260,0.06,203.72,203.67,9.73878245]
[1753200901461,0.06,203.72,203.66,36.32]
[1753200901763,0.06,203.72,203.66,46.05878245]
[1753200902159,5.57895784,203.71,203.62,89.29]
[1753200902357,9.73878245,203.65,203.59,6.5775]
[1753200902554,0.67,203.66,203.59,11.48924999]
[1753200902791,9.73878245,203.65,203.59,21.22803244]
[1753200902993,10.40878245,203.66,203.59,21.22803244]
[1753200903212,9.73878245,203.64,203.58,36.32]
[1753200903422,9.73878245,203.6,203.56,0.03]
[1753200903611,10.40878245,203.59,203.56,0.03]
[1753200903791,9.73878245,203.57,203.56,0.03]
[1753200903994,2.2652,203.69,203.56,0.03]
[1753200904174,5.57992349,203.67,203.6,9.73878245]
[1753200904372,9.73878245,203.64,203.57,10.42878245]
[1753200904687,9.73878245,203.6,203.56,0.03]
[1753200905102,0.67,203.62,203.57,9.73878245]
[1753200905277,9.73878245,203.64,203.58,9.73878245]
[1753200905481,0.67,203.65,203.6,9.73878245]
[1753200905689,9.73878245,203.67,203.61,9.73878245]
[1753200906214,9.73878245,203.67,203.57,37.17]
[1753200906215,0.67,203.71,203.65,9.73878245]
[1753200906515,9.79878245,203.72,203.7,9.73878245]
[1753200906516,0.06,203.72,203.7,9.73878245]
[1753200906713,0.06,203.72,203.71,9.73878245]
[1753200907071,0.06,203.72,203.71,10.42878245]
[1753200907613,0.06,203.72,203.71,9.73878245]
[1753200907781,0.06,203.72,203.71,10.42878245]
[1753200908292,10.40878245,203.81,203.71,15.33772162]
[1753200908611,9.73878245,203.8,203.74,9.73878245]
[1753200908907,9.73878245,203.78,203.71,41.38893917]
[1753200909072,9.73878245,203.77,203.71,46.21878245]
[1753200909278,0.67,203.79,203.73,9.73878245]
[1753200909510,0.67,203.79,203.71,36.48]
[1753200909680,9.73878245,203.78,203.71,46.21878245]
[1753200909883,9.73878245,203.75,203.67,26.0]
[1753200910118,0.67,203.77,203.69,9.73878245]
[1753200910317,0.67,203.77,203.71,14.64756243]
[1753200910477,10.40878245,203.77,203.71,9.73878245]
[1753200910680,9.73878245,203.76,203.68,42.05948548]
[1753200910885,9.73878245,203.71,203.65,36.44]
[1753200911122,9.73878245,203.71,203.65,46.17878245]
[1753200911322,0.67,203.73,203.66,9.73878245]
[1753200911529,10.40878245,203.73,203.66,9.73878245]
[1753200911845,5.57758416,203.77,203.67,0.69]
[1753200912126,62.44,203.8,203.72,9.73878245]
[1753200912127,4.90679113,203.8,203.72,9.73878245]
[1753200912423,0.67,203.8,203.75,9.73878245]
[1753200912598,0.06,203.77,203.74,9.73878245]
[1753200913185,0.06,203.77,203.68,0.69]
[1753200913387,0.06,203.77,203.65,118.16]
[1753200913388,9.73878245,203.7,203.65,88.6]
[1753200913621,10.40878245,203.7,203.64,36.44]
[1753200913831,0.67,203.7,203.65,9.73878245]
[1753200913986,9.73878245,203.74,203.68,9.73878245]
[1753200914190,9.73878245,203.72,203.66,9.73878245]
[1753200914441,10.40878245,203.71,203.64,36.44]
[1753200914723,9.73878245,203.72,203.64,41.35051979]
[1753200914928,9.73878245,203.72,203.66,9.73878245]
[1753200915106,9.73878245,203.71,203.65,9.73878245]
[1753200915305,9.73878245,203.71,203.64,46.17878245]
[1753200915500,0.67,203.72,203.66,9.73878245]
[1753200915919,0.67,203.72,203.67,9.73878245]
[1753200916122,10.40878245,203.72,203.64,41.3505509]
[1753200916298,0.67,203.72,203.66,14.6489268]
[1753200916698,9.73878245,203.72,203.66,9.73878245]
[1753200917025,9.73878245,203.69,203.65,89.09103854]
[1753200917217,10.40878245,203.76,203.66,0.69]
[1753200917523,9.73878245,203.74,203.61,1.5835]
[1753200917722,0.68,203.73,203.62,9.73878245]
[1753200917909,9.73878245,203.64,203.6,36.5]
[1753200918333,9.73878245,203.65,203.6,36.5]
[1753200918523,9.73878245,203.64,203.6,36.5]
[1753200918724,9.73878245,203.63,203.6,36.5]
[1753200918898,10.41878245,203.62,203.59,0.03]
[1753200919100,0.68,203.62,203.59,0.03]
[1753200919729,0.68,203.65,203.59,4.94171836]
[1753200920004,9.73878245,203.67,203.6,9.73878245]
[1753200920216,9.73878245,203.64,203.59,5.63171836]
[1753200920422,9.73878245,203.62,203.59,0.03]
[1753200921133,9.73878245,203.63,203.59,0.03]
[1753200921329,9.73878245,203.68,203.61,9.73878245]
[1753200921511,0.68,203.69,203.61,9.73878245]
[1753200921711,9.73878245,203.68,203.61,46.23878245]
[1753200921911,9.73878245,203.66,203.61,36.5]
[1753200922206,9.73878245,203.7,203.63,9.73878245]
[1753200922531,9.73878245,203.7,203.64,4.91062659]
[1753200922745,26.06,203.77,203.63,9.73878245]
[1753200922746,9.73878245,203.69,203.63,21.73256137]
[1753200922908,9.73878245,203.69,203.63,21.04256137]
[1753200923520,0.06,203.77,203.68,9.73878245]
[1753200923729,9.73878245,203.76,203.69,46.88878245]
[1753200923925,10.47878245,203.77,203.7,46.19878245]
[1753200924132,9.79878245,203.77,203.71,9.73878245]
[1753200924318,0.06,203.77,203.72,9.73878245]
[1753200924636,0.06,203.77,203.74,14.6469988]
[1753200924829,0.06,203.77,203.74,4.90821635]
[1753200925034,0.06,203.77,203.74,14.6469988]
[1753200925207,0.06,203.77,203.74,20.24321355]
[1753200925407,0.06,203.77,203.76,14.6449972]
[1753200925848,0.06,203.77,203.76,15.3349972]
[1753200926449,0.06,203.77,203.76,16.35313252]
[1753200926619,0.06,203.77,203.76,21.24478278]
[1753200926819,0.06,203.77,203.76,11.51978558]
[1753200927014,0.06,203.77,203.76,21.24478278]
[1753200927243,1.5671,203.9,203.76,21.24478278]
[1753200927244,0.68,203.9,203.78,29.56]
[1753200927425,0.68,203.9,203.83,14.6449972]
[1753200927917,0.68,203.97,203.89,14.6449972]
[1753200928115,15.3249972,203.97,203.91,14.6449972]
[1753200928313,12.25237364,204.05,203.89,36.48]
[1753200928314,2.55455998,204.05,203.96,7.8534]
[1753200928513,0.68,204.11,204.04,19.545997]
[1753200928723,5.57850246,204.15,204.04,5.5909998]
[1753200928939,0.68,204.14,204.03,0.69]
[1753200929125,0.68,204.18,204.04,0.69]
[1753200929323,0.68,204.18,204.06,29.56]
[1753200929546,17.13921942,204.21,204.07,37.89]
[1753200929718,17.13921942,204.21,204.12,14.6449972]
[1753200929719,14.6449972,204.19,204.12,14.6449972]
[1753200929921,0.68,204.18,204.08,0.69]
[1753200930135,14.6449972,204.15,204.08,0.69]
[1753200930327,0.68,204.18,204.08,0.69]
[1753200930542,14.6449972,204.1,204.04,0.69]
[1753200930845,14.6449972,204.12,204.05,14.6449972]
[1753200931044,14.6449972,204.1,204.04,0.69]
[1753200931341,5.57863958,204.14,204.01,15.3349972]
[1753200931342,0.68,204.13,204.01,15.3349972]
[1753200931547,0.68,204.13,204.01,0.69]
[1753200931748,0.68,204.13,204.01,5.59164803]
[1753200931922,14.6449972,204.07,204.01,0.69]
[1753200932119,17.14513708,204.14,204.01,0.69]
[1753200932350,17.13869431,204.22,204.06,26.0]
[1753200932537,4.89715964,204.2,204.07,0.69]
[1753200932838,0.68,204.19,204.08,0.49000392]
[1753200933150,0.68,204.19,204.07,0.69]
[1753200933656,14.6449972,204.1,204.07,0.69]
[1753200933957,0.68,204.16,204.04,0.69]
[1753200934251,14.6449972,204.12,203.96,8.5434]
[1753200934436,14.6449972,204.01,203.96,6.8778]
[1753200934626,14.6449972,203.97,203.92,10.85833082]
[1753200934826,24.49882684,204.1,203.9,1.00136298]
[1753200934827,0.68,204.04,203.93,38.39]
[1753200935154,0.68,204.06,203.94,0.69]
[1753200935451,14.6449972,204.02,203.95,15.1449972]
[1753200935650,14.6449972,204.0,203.95,0.5]
[1753200935951,14.6449972,204.0,203.85,10.0]
[1753200935952,0.68,204.0,203.92,14.6449972]
[1753200936159,0.68,204.03,203.93,14.6449972]
[1753200936447,0.68,204.06,203.98,31.42968117]
[1753200936655,0.68,204.09,204.0,14.6449972]
[1753200936863,14.6449972,204.08,204.01,0.69]
[1753200937032,14.6449972,204.1,204.03,14.6449972]
[1753200937359,0.68,204.13,204.04,0.49009998]
[1753200937657,14.6449972,204.09,204.04,0.9319401]
[1753200938152,4.89835904,204.15,204.04,0.9319401]
[1753200938153,14.6449972,204.11,204.05,0.69]
[1753200938327,14.6449972,204.06,204.04,0.9319401]
[1753200938658,19.54575681,204.05,204.04,0.9319401]
[1753200938949,20.22575681,204.05,204.04,0.9319401]
[1753200939655,58.47765585,204.05,203.89,7.1561]
[1753200939840,58.47765585,204.05,203.8,13.8720532]
[1753200939841,14.6449972,203.92,203.86,5.59522449]
[1753200940150,26.0,204.03,203.86,4.90521974]
[1753200940342,26.0,204.03,203.88,0.69]
[1753200940343,14.6449972,203.98,203.88,0.69]
[1753200940655,14.6449972,203.93,203.87,14.6449972]
[1753200940869,14.6449972,203.91,203.85,38.51]
[1753200941050,14.6449972,203.92,203.85,52.4649972]
[1753200941560,14.6449972,203.86,203.76,0.69]
[1753200941744,14.6449972,203.84,203.77,14.6449972]
[1753200941940,14.6449972,203.83,203.76,20.24273178]
[1753200942268,17.16280824,203.93,203.75,6.1601]
[1753200942269,14.6449972,203.81,203.75,6.1601]
[1753200942438,14.6449972,203.82,203.76,14.6449972]
[1753200942640,14.6449972,203.83,203.75,6.1601]
[1753200942841,14.6449972,203.82,203.75,20.8050972]
[1753200943038,0.68,203.85,203.75,11.06805288]
[1753200943238,14.6449972,203.81,203.74,0.69]
[1753200943444,14.6449972,203.78,203.71,38.59]
[1753200943638,14.6449972,203.78,203.71,15.3349972]
[1753200943845,14.6449972,203.75,203.68,14.6449972]
[1753200944339,14.6449972,203.76,203.69,14.6449972]
[1753200944546,0.68,203.81,203.72,14.6449972]
[1753200944851,0.68,203.81,203.67,11.11130128]
[1753200944852,14.6449972,203.77,203.71,14.6449972]
[1753200945058,14.6449972,203.8,203.73,14.6449972]
[1753200945360,14.6449972,203.79,203.72,15.61327267]
[1753200945673,14.6449972,203.78,203.72,15.61327267]
[1753200945867,14.6449972,203.77,203.72,0.96827547]
[1753200946064,0.68,203.77,203.72,0.96827547]
[1753200946762,15.3249972,203.77,203.72,0.96827547]
[1753200947151,15.3249972,203.77,203.72,5.876942]
[1753200947364,14.6449972,203.79,203.73,15.3349972]
[1753200947670,14.6449972,203.8,203.73,15.3349972]
[1753200947874,14.6449972,203.75,203.72,0.96827547]
[1753200948177,14.6449972,203.77,203.72,1.65827547]
[1753200948379,14.6449972,203.84,203.72,0.96827547]
[1753200948570,0.7,203.8,203.73,14.6449972]
[1753200948753,14.6449972,203.79,203.72,5.87697155]
[1753200948949,0.7,203.84,203.74,14.6449972]
[1753200949259,14.6449972,203.81,203.74,15.1449972]
[1753200949461,14.6449972,203.82,203.76,14.6449972]
[1753200949854,14.6449972,203.82,203.75,15.3349972]
[1753200950089,14.6449972,203.82,203.76,14.6449972]
[1753200950256,14.6449972,203.83,203.76,14.6449972]
[1753200950455,0.7,203.86,203.75,0.69]
[1753200950658,0.7,203.86,203.76,14.6449972]
[1753200950959,6.0,203.9,203.78,14.6449972]
[1753200951160,14.6449972,203.86,203.79,14.6449972]
[1753200951358,0.7,203.89,203.81,14.6449972]
[1753200951661,14.6449972,203.87,203.8,15.82567433]
[1753200951863,0.7,203.89,203.8,15.82567433]
[1753200952068,20.6449972,203.9,203.84,14.6449972]
[1753200952253,14.6449972,203.88,203.82,40.6449972]
[1753200952450,14.6449972,203.88,203.81,15.82565025]
[1753200952650,6.0,203.9,203.82,14.6449972]
[1753200952882,14.6449972,203.89,203.84,4.90580847]
[1753200953276,6.0,203.9,203.84,4.90580847]
[1753200953277,14.6449972,203.88,203.84,4.90580847]
[1753200953855,6.0,203.9,203.84,4.90580847]
[1753200954183,14.6449972,203.88,203.84,4.90580847]
[1753200954372,2.55524252,203.99,203.85,62.02314075]
[1753200954563,14.6449972,204.0,203.92,14.6449972]
[1753200954765,14.6449972,204.0,203.93,14.6449972]
[1753200954977,14.6449972,204.0,203.93,31.80774911]
[1753200955278,14.6449972,204.0,203.93,32.29811345]
[1753200955467,14.6449972,204.0,203.93,17.65311625]
[1753200955671,14.6449972,204.0,203.93,17.16275191]
[1753200955868,14.6449972,204.0,203.94,29.56]
[1753200956076,14.6449972,204.01,203.94,29.56]
[1753200956393,14.6449972,204.01,203.94,44.2049972]
[1753200956882,0.7,204.04,203.94,44.2049972]
[1753200956883,14.6449972,204.02,203.96,4.90292214]
[1753200957387,0.7,204.04,203.97,14.6449972]
[1753200957568,0.06,204.04,203.99,14.6449972]
[1753200957889,0.06,204.04,204.01,14.6449972]
[1753200958388,0.06,204.04,204.01,15.3349972]
[1753200958588,0.06,204.04,204.03,14.6449972]
[1753200958790,0.06,204.04,204.02,14.6449972]
[1753200959003,0.06,204.04,204.03,14.6449972]
[1753200959573,0.06,204.04,204.02,4.90148024]
[1753200959791,0.06,204.04,204.02,19.54647744]
[1753200960169,0.06,204.04,204.02,4.90148024]
[1753200960494,0.06,204.04,204.03,15.1351212]
[1753200960695,14.7049972,204.04,203.94,0.69]
[1753200960998,14.7049972,204.04,203.96,30.0]
[1753200960999,4.90148024,204.02,203.96,30.0]
[1753200961291,26.7,204.03,203.87,17.167803]
[1753200961292,0.7,204.01,203.87,17.167803]
[1753200961461,0.76,204.04,203.89,17.47468397]
[1753200961665,0.76,204.04,203.92,16.78468397]
[1753200961863,0.76,204.04,203.92,29.56]
[1753200962059,14.6449972,204.0,203.93,52.7649972]
[1753200962274,0.76,204.04,203.99,14.6449972]
[1753200962275,0.06,204.04,203.99,14.6449972]
[1753200962480,0.06,204.04,203.96,26.0]
[1753200962481,14.7049972,204.04,203.98,52.7849972]
[1753200962678,0.06,204.04,203.98,52.7849972]
[1753200963003,0.06,204.04,204.0,4.90196078]
[1753200963164,0.06,204.04,204.01,14.6449972]
[1753200963377,0.06,204.04,204.02,14.6449972]
[1753200963593,0.06,204.04,204.0,5.59196078]
[1753200963807,0.06,204.04,204.0,4.90196078]
[1753200964006,14.6449972,204.01,203.97,4.90268176]
[1753200964218,14.6449972,203.98,203.95,38.16]
[1753200964379,0.7,204.0,203.92,4.90388387]
[1753200964380,14.6449972,203.97,203.92,4.90388387]
[1753200964778,0.06,204.04,203.94,14.6449972]
[1753200964779,14.6449972,204.01,203.94,14.6449972]
[1753200964999,14.6449972,204.01,203.95,4.90316253]
[1753200965328,14.6449972,204.02,203.96,14.6449972]
[1753200965603,14.6449972,204.01,203.96,38.14]
[1753200965809,14.6449972,203.98,203.96,38.14]
[1753200966309,14.6449972,203.98,203.95,4.90316253]
[1753200966310,15.3449972,203.97,203.94,0.5]
[1753200966617,0.7,203.99,203.94,5.40340296]
[1753200966792,14.6449972,203.97,203.94,5.40340296]
[1753200967604,0.7,203.99,203.94,5.40340296]
[1753200967775,14.6449972,203.97,203.94,5.40340296]
[1753200967979,4.90126487,204.03,203.94,5.40340296]
[1753200968317,0.7,204.02,203.94,5.40340296]
[1753200968482,14.6449972,203.98,203.94,43.48340296]
[1753200969320,0.7,203.97,203.94,0.5]
[1753200969608,14.6449972,203.95,203.94,0.5]
[1753200969811,15.3449972,203.95,203.87,4.90508657]
[1753200970016,14.6449972,203.94,203.88,38.02]
[1753200970389,14.6449972,203.97,203.91,14.6449972]
[1753200970795,15.3449972,203.98,203.92,14.6449972]
[1753200971004,15.3449972,203.98,203.93,38.06]
[1753200971307,14.6449972,203.98,203.93,38.06]
[1753200971495,14.6449972,203.97,203.94,5.40340296]
[1753200971701,14.6449972,203.96,203.94,0.5]
[1753200971907,4.90173849,204.01,203.87,88.6]
[1753200971908,15.3449972,203.95,203.87,88.6]
[1753200972192,0.7,203.94,203.87,4.90508537]
[1753200972392,14.6449972,203.91,203.87,4.90508537]
[1753200972620,14.6449972,203.92,203.87,4.90508537]
[1753200972927,0.7,203.94,203.87,19.55008257]
[1753200973132,4.90173849,204.01,203.88,15.59547589]
[1753200973300,14.6449972,203.96,203.89,14.6449972]
[1753200973500,14.6449972,203.94,203.88,15.59547589]
[1753200973799,14.6449972,203.93,203.88,0.95047869]
[1753200974128,14.6449972,203.91,203.88,0.95047869]
[1753200974531,14.6449972,203.92,203.88,0.95047869]
[1753200974827,17.15434004,204.03,203.88,20.50021889]
[1753200975029,14.6449972,203.95,203.89,14.6449972]
[1753200975328,14.6449972,203.95,203.89,103.2449972]
[1753200975693,14.6449972,203.93,203.89,88.6]
[1753200976032,15.3449972,203.93,203.89,88.6]
[1753200976223,14.6449972,203.91,203.89,88.6]
[1753200976524,15.3449972,203.93,203.89,93.50460508]
[1753200976824,14.6449972,203.93,203.89,93.50460508]
[1753200977008,0.7,203.92,203.89,88.6]
[1753200977596,4.90323194,203.95,203.89,88.6]
[1753200977793,0.71,203.91,203.88,5.85532436]
[1753200978095,0.71,203.91,203.88,5.85530716]
[1753200978297,14.6449972,203.92,203.88,5.85530716]
[1753200978608,0.71,203.96,203.88,5.85530716]
[1753200978812,0.71,203.96,203.88,20.50030436]
[1753200979131,14.6449972,203.95,203.88,20.50030436]
[1753200979501,0.71,204.0,203.9,14.6449972]
[1753200979697,14.6449972,203.97,203.91,42.76412436]
[1753200979898,14.6449972,203.95,203.91,42.76412436]
[1753200980605,15.3549972,203.94,203.9,4.90433739]
[1753200980798,15.3549972,203.94,203.88,0.98047869]
[1753200980799,0.71,203.93,203.88,0.98047869]
[1753200981013,0.71,203.92,203.88,38.78047869]
[1753200981304,14.6449972,203.94,203.88,58.3302182]
[1753200981503,14.6449972,203.97,203.89,0.67]
[1753200981708,14.6449972,203.98,203.92,4.90388387]
[1753200982047,14.6449972,203.96,203.92,37.8]
[1753200983123,0.71,203.99,203.92,52.4449972]
[1753200983323,0.71,204.02,203.94,14.6449972]
[1753200983624,14.6449972,204.0,203.94,14.6449972]
[1753200983814,14.6449972,204.0,203.95,4.90316253]
[1753200984016,15.3549972,204.02,203.96,52.3849972]
[1753200984213,15.3549972,204.02,203.96,140.9849972]
[1753200984414,14.6449972,204.01,203.96,126.34]
[1753200984820,14.6449972,204.0,203.96,126.34]
[1753200985009,14.6449972,203.97,203.96,88.6]
[1753200985203,15.3549972,203.97,203.9,4.90436342]
[1753200985403,14.6449972,203.93,203.89,126.3]
[1753200985702,0.71,203.93,203.89,131.20460081]
[1753200985918,14.6449972,203.96,203.9,14.6449972]
[1753200986213,14.6449972,203.96,203.89,145.84959801]
[1753200986443,14.6449972,203.95,203.89,131.20460081]
[1753200986613,14.6449972,203.98,203.91,0.5]
[1753200986807,14.6449972,203.96,203.91,89.1]
[1753200987027,14.6449972,203.97,203.91,89.77]
[1753200987250,30.90124001,204.03,203.91,89.77]
[1753200987251,14.6449972,203.95,203.91,89.1]
[1753200987740,14.6449972,203.93,203.91,89.1]
[1753200987937,15.3549972,203.92,203.91,0.5]
[1753200988117,15.3549972,203.92,203.9,37.68]
[1753200988317,15.3549972,203.92,203.89,4.90446583]
[1753200988318,14.6449972,203.91,203.89,4.90446583]
[1753200988528,15.3549972,203.91,203.88,43.54522078]
[1753200988821,0.71,203.9,203.88,0.98047869]
[1753200989015,15.3549972,203.89,203.88,0.98047869]
[1753200990252,0.71,203.89,203.88,0.98047869]
[1753200990448,20.25960262,203.89,203.88,0.98047869]
[1753200990748,15.3549972,203.89,203.88,0.98047869]
[1753200991049,20.25960262,203.89,203.88,0.98047869]
[1753200991623,0.71,203.89,203.88,0.98047869]
[1753200991825,20.25960262,203.89,203.88,0.98047869]
[1753200992026,15.3549972,203.89,203.88,0.98047869]
[1753200993821,15.3549972,203.89,203.83,0.03]
[1753200994019,14.6449972,203.84,203.83,0.03]
[1753200994572,15.3549972,203.84,203.83,0.03]
[1753200994743,29.9999944,203.84,203.83,0.03]
[1753200994916,29.9999944,203.84,203.79,0.03]
[1753200994917,14.6449972,203.8,203.79,0.03]
[1753200995240,14.6449972,203.8,203.72,0.03]
[1753200995419,14.6449972,203.75,203.72,0.03]
[1753200995614,0.71,203.79,203.72,0.03]
[1753200995820,14.6449972,203.76,203.72,0.03]
[1753200996030,15.3549972,203.76,203.72,0.03]
[1753200996255,14.6449972,203.75,203.72,0.03]
[1753200996750,14.6449972,203.74,203.72,0.03]
[1753200997130,0.71,203.78,203.72,0.03]
[1753200997329,14.6449972,203.76,203.72,0.03]
[1753200998055,15.3549972,203.75,203.72,0.03]
[1753200998344,14.6449972,203.75,203.72,0.03]
[1753200998756,14.6449972,203.74,203.72,0.03]
[1753200998937,14.6449972,203.73,203.72,0.03]
[1753200999138,15.3549972,203.73,203.72,0.03]
[1753200999337,15.3549972,203.73,203.67,0.03]
[1753200999533,14.6449972,203.68,203.67,0.03]
[1753201000032,20.26465941,203.68,203.67,0.03]
[1753201001286,26.0,203.65,203.63,0.03]
[1753201001586,26.0,203.65,203.6,0.03]
[1753201001587,14.6449972,203.64,203.6,0.03]
[1753201001793,14.6449972,203.6,203.51,0.03]
[1753201002091,14.6449972,203.57,203.51,0.03]
[1753201002455,15.3549972,203.57,203.51,0.03]
[1753201002887,14.6449972,203.58,203.51,15.3449972]
[1753201003065,14.6449972,203.6,203.56,0.7]
[1753201003388,0.71,203.65,203.59,14.6449972]
[1753201003692,0.71,203.69,203.64,14.6449972]
[1753201003867,0.71,203.74,203.67,14.6449972]
[1753201004066,14.6449972,203.73,203.67,19.55475077]
[1753201004263,14.6449972,203.71,203.67,0.03]
[1753201004469,14.6449972,203.69,203.67,0.03]
[1753201004671,15.3549972,203.7,203.67,0.03]
[1753201004986,4.90823518,203.74,203.67,0.03]
[1753201004987,0.71,203.68,203.67,0.03]
[1753201005159,15.3549972,203.68,203.67,0.03]
[1753201005363,0.71,203.68,203.67,0.03]
[1753201005558,15.3549972,203.68,203.67,0.03]
[1753201005758,0.71,203.68,203.67,0.03]
[1753201005972,14.6449972,203.7,203.67,0.03]
[1753201006270,0.71,203.72,203.67,0.03]
[1753201006469,0.71,203.7,203.67,0.03]
[1753201007086,15.3549972,203.69,203.67,0.03]
[1753201007594,4.90880009,203.72,203.67,0.03]
[1753201007595,15.3449972,203.68,203.67,0.03]
[1753201007791,0.7,203.68,203.67,0.03]
[1753201007988,0.7,203.68,203.56,0.03]
[1753201007989,15.3449972,203.68,203.57,19.55728714]
[1753201008180,14.6449972,203.62,203.57,4.91228994]
[1753201008387,15.3449972,203.62,203.57,4.91228994]
[1753201008703,15.3449972,203.62,203.56,19.58754312]
[1753201009581,14.6449972,203.64,203.57,14.6449972]
[1753201010097,14.6449972,203.62,203.56,19.58754312]
[1753201010403,14.6449972,203.62,203.56,14.6749972]
[1753201010789,14.6449972,203.6,203.56,0.03]
[1753201011102,15.3449972,203.61,203.56,0.03]
[1753201011398,14.6449972,203.62,203.56,14.6749972]
[1753201011606,14.6449972,203.61,203.56,0.03]
[1753201011899,14.6449972,203.57,203.56,0.03]
[1753201012385,14.6449972,203.52,203.51,0.03]
[1753201012585,4.91275065,203.56,203.51,0.03]
[1753201012795,14.6449972,203.53,203.51,0.03]
[1753201013180,15.3449972,203.53,203.51,0.03]
[1753201013601,0.7,203.52,203.51,0.03]
[1753201013905,0.7,203.55,203.51,0.03]
[1753201014098,15.3449972,203.55,203.51,0.03]
[1753201014282,0.7,203.54,203.51,0.03]
[1753201014483,15.3449972,203.54,203.51,0.03]
[1753201014703,0.7,203.53,203.51,0.03]
[1753201016613,0.7,203.57,203.52,14.6449972]
[1753201016796,14.6449972,203.58,203.52,14.6449972]
[1753201017000,0.7,203.59,203.55,14.6449972]
[1753201017919,21.69531056,203.64,203.54,14.6449972]
[1753201018126,0.7,203.58,203.54,14.6449972]
[1753201018424,14.6449972,203.61,203.55,14.6449972]
[1753201019100,14.6449972,203.61,203.51,0.75]
[1753201019101,0.7,203.6,203.52,4.91329059]
[1753201019423,15.3449972,203.63,203.57,14.6449972]
[1753201019718,80.06468397,203.66,203.53,0.72]
[1753201019719,15.3449972,203.66,203.59,14.6449972]
[1753201020019,15.3449972,203.66,203.6,14.6449972]
[1753201020227,0.7,203.66,203.59,4.91175977]
[1753201020392,52.6249972,203.71,203.6,0.72]
[1753201020592,56.83397076,203.71,203.64,14.6449972]
[1753201020800,14.6449972,203.68,203.62,14.6449972]
[1753201021019,0.7,203.7,203.63,14.6449972]
[1753201021327,0.7,203.7,203.58,88.6]
[1753201021328,14.6449972,203.64,203.58,88.6]
[1753201021502,0.7,203.66,203.58,19.55705906]
[1753201021699,0.7,203.66,203.6,14.6449972]
[1753201021893,0.7,203.7,203.65,14.6449972]
[1753201022093,14.6449972,203.71,203.65,14.6449972]
[1753201023222,4.96872358,203.72,203.65,14.6449972]
[1753201023413,14.6449972,203.71,203.65,14.6449972]
[1753201023624,14.7049972,203.72,203.66,14.6449972]
[1753201023801,14.7049972,203.72,203.63,0.72]
[1753201024314,19.61378393,203.72,203.64,4.91062659]
[1753201024511,0.06,203.72,203.67,14.6449972]
[1753201024700,0.06,203.72,203.64,4.91062659]
[1753201024900,0.06,203.72,203.68,14.6449972]
[1753201025223,0.06,203.72,203.7,14.6449972]
[1753201025402,0.06,203.72,203.71,14.6449972]
[1753201026020,0.06,203.72,203.68,0.72]
[1753201026211,0.06,203.72,203.65,6.021]
[1753201026212,0.06,203.72,203.7,14.6449972]